Cogmind - Beta 17.1 @@@ ROGUE MODE // 2026.09.05 @ 08:27:32 Player: qqchimpo Result: Destroyed by S-10 Pest with Light Assault Rifle Performance ------------- Evolutions (0) 0 Regions Visited (1) 200 Robots Destroyed (20) 100 Value Destroyed (401) 401 Prototype IDs (0) 0 Alien Tech Used (0) 0 Bonus (0) 0 TOTAL SCORE: 701 Bonus ------- None Cogmind --------- Core Integrity 0/250 Matter 300/300 Energy 350/350 System Corruption 0% Temperature Cool (0) Movement Core (100) Ox1 Location -10/Materials Parts ------- > --- POWER (1) -------- (None) > --- PROPULSION (2) --- (None) > --- UTILITY (2) ------ High-capacity Battery Power Shielding > --- WEAPON (2) ------- (None) > --- INVENTORY (5) ---- Targeting Computer Peak State ------------ > --- POWER ------------ Light Ion Engine > --- PROPULSION ------- Light Treads Light Treads > --- UTILITY ---------- Small Storage Unit Targeting Computer > --- WEAPON ----------- Assault Rifle Light Assault Rifle > --- INVENTORY -------- Targeting Computer [Rating: 7] Favorites ----------- Power Light Ion Engine Engine Light Ion Engine Propulsion Light Treads Treads Light Treads Utility Targeting Computer Storage Small Storage Unit Processor Targeting Computer Protection Power Shielding Weapon Grenade Launcher Energy Gun Medium Laser Ballistic Gun Assault Rifle Launcher Grenade Launcher Special Weapon Mining Laser Build | -11 -10 ------- Run | Yrd Mat Slots Evolved . | . . Power . | . . Propulsion . | . . Utility . | . . Weapon . | . . Parts Attached 14 | 6 8 Power 2 | 1 1 Engine 2 | 1 1 Core . | . . Reactor . | . . Propulsion 2 | 2 . Treads 2 | 2 . Leg . | . . Wheel . | . . Hover . | . . Flight . | . . Utility 5 | 1 4 Device . | . . Storage 2 | 1 1 Processor 2 | . 2 Hackware . | . . Protection 1 | . 1 Artifact . | . . Weapon 5 | 2 3 Energy Gun 1 | . 1 Energy Cannon . | . . Ballistic Gun 2 | 2 . Ballistic Cannon . | . . Launcher 1 | . 1 Special Weapon 1 | . 1 Impact Weapon . | . . Slashing Weapon . | . . Piercing Weapon . | . . Special Melee Weapon . | . . Unidentified Prototypes . | . . Parts Lost 6 | . 6 Power 2 | . 2 Propulsion 2 | . 2 Utility . | . . Weapon 2 | . 2 Highest Loss Streak 5 | . 5 To Critical Strikes . | . . Average Backups 1 | . 1 Power . | . . Propulsion . | . . Utility . | . . Weapon . | . . Tool/Special . | . . Unused Backups 3 | . 3 Power . | . . Propulsion . | . . Utility 3 | . 3 Weapon . | . . Tool/Special . | . . Average Slot Usage (%) 87 | . 87 Engine 9 | . 9 Treads 26 | . 26 Storage 5 | . 5 Processor 14 | . 14 Protection 4 | . 4 Energy Gun 7 | . 7 Ballistic Gun 7 | . 7 Launcher 9 | . 9 Peak Build Rating 7 | 6 7 Average Rating 6 | 5 6 On Entrance 3 | . 6 Avg Prop Armor Cover (%) . | . . Naked Turns . | . . Heaviest Build 14 | 11 14 Greatest Support 40 | 40 40 Greatest Overweight (x) 1 | . 1 Average Overweight (x) . | . . Largest Inventory Capacity 8 | 8 8 Average Capacity 5 | 7 5 Most Carried 5 | 2 5 Average Carried 1 | . 1 Final Capacity 8 | 8 5 Final Carried 1 | . 1 Class Distribution -------------------- 100% | Mutant Dominant Class ---------------- Mutant | -10/Materials Resources | -11 -10 ----------- Run | Yrd Mat Matter Collected 490 | 255 235 Remotely . | . . Salvage Created 359 | . 359 Parts 25 | . 25 Haulers Intercepted 1 | . 1 Recyclers Shooed 1 | . 1 Parts Field Recycled . | . . Retrieved Matter . | . . Parts Self-Destructed . | . . Prevented . | . . Parts Restored . | . . Kills | -11 -10 ------- Run | Yrd Mat Combat Hostiles Destroyed 15 | . 15 Melee 2 | . 2 Guns 5 | . 5 Cannons 1 | . 1 AOE 7 | . 7 Classes Destroyed 7 | . 7 Worker 1 | . 1 Builder 1 | . 1 Hauler 1 | . 1 Operator 1 | . 1 Watcher 1 | . 1 Swarmer 8 | . 8 Grunt 7 | . 7 Best Kill Streak 6 | . 6 Combat Bots Only 5 | . 5 Max Kills in Single Turn 2 | . 2 Gunslinging . | . . Exploded 1 | . 1 Melee 1 | . 1 Uniques/NPCs Destroyed . | . . Combat | -11 -10 -------- Run | Yrd Mat Hostile Shots Fired 101 | . 101 Missed 25 | . 25 Hits 76 | . 76 Projectile 76 | . 76 Critical Strikes 1 | . 1 Damage Taken 812 | . 812 Core 252 | . 252 Absorbed by Shields . | . . Redirected to Shielding 22 | . 22 Core Remaining (%) 100 | 100 . Volleys Fired 38 | . 38 Largest 2 | . 2 Hottest 100 | . 100 Shots Fired 69 | . 69 Gun 49 | . 49 Cannon . | . . Launcher 16 | . 16 Special 4 | . 4 Kinetic 32 | . 32 Thermal 21 | . 21 Explosive 16 | . 16 Electromagnetic . | . . Robot Hit Streak 7 | . 7 Robot Miss Streak 4 | . 4 Penetration Max . | . . Secondary Targets . | . . Shots Hit Robots 37 | . 37 Core Hits 36 | . 36 Critical Kills . | . . Critical Parts Destroyed . | . . Critical Strikes 1 | . 1 Burn 1 | . 1 Melee Attacks . | . . Impact . | . . Slashing . | . . Piercing . | . . Sneak Attacks . | . . Combat Hostiles . | . . Follow-up Attacks . | . . Damage Inflicted 1229 | . 1229 Guns 227 | . 227 Cannons . | . . Explosions 928 | . 928 Melee . | . . Ramming 26 | . 26 Kinetic 151 | . 151 Thermal 124 | . 124 Explosive 928 | . 928 Electromagnetic . | . . Impact . | . . Slashing . | . . Piercing . | . . Highest Corruption . | . . Average Corruption . | . . Corruption Purged . | . . Corruption Blocked . | . . Overload Shots . | . . Overflow Damage 27 | . 27 Projectiles . | . . Explosions 27 | . 27 Melee . | . . Knockbacks . | . . Impact . | . . Kinetic . | . . Secondary . | . . Self-Inflicted Damage 107 | . 107 Shots 5 | . 5 Rammed 15 | . 15 Targets Rammed 16 | . 16 Kicked . | . . Crushed 1 | . 1 Highest Temperature 60 | . 60 Average Temperature 12 | . 12 Received Heat Transfer 144 | . 144 Siege Activations . | . . Martial Activations . | . . Shielding Activations . | . . Robots Disrupted . | . . Combat Hostiles . | . . Robots Corrupted . | . . Combat Hostiles . | . . Parts Fried . | . . Impact Corruptions . | . . Robots Melted . | . . Combat Hostiles . | . . Parts Melted . | . . Heat Transferred 396 | . 396 Parts Sabotaged . | . . Parts Stolen . | . . Parts Stripped . | . . Power Chain Reactions . | . . Alert | -11 -10 ------- Run | Yrd Mat Maximum Alert Level 1 | . 1 Low Security (%) 83 | 100 80 Level 1 16 | . 19 Level 2 . | . . Level 3 . | . . Level 4 . | . . Level 5 . | . . High Security . | . . Max Security . | . . Peak Influence 252 | . 252 Initial . | . . Average 78 | . 90 Influence Increases 544 | . 544 Destroy 0b10 Robot/C 300 | . 300 Destroy 0b10 Robot/NC 25 | . 25 Destroy Leader 54 | . 54 Successful Hack 1 | . 1 Disable Machine 45 | . 45 Destroy Structure 89 | . 89 Lose Combat Pursuer 30 | . 30 Influence Decreases 371 | . 371 Time Decay 321 | . 321 Lost Part 50 | . 50 Squads Dispatched 2 | . 2 Investigation . | . . Extermination . | . . Reinforcement 2 | . 2 Assault . | . . Garrison . | . . Intercept . | . . Searches Triggered . | . . Construction Impeded . | . . Haulers Reinforced . | . . Active Scanning Responses . | . . Cargo Convoy Interrupts . | . . Stealth | -11 -10 --------- Run | Yrd Mat Distress Signals 1 | . 1 Communications Jammed . | . . Distress Signals . | . . Times Spotted 23 | . 23 Peak Tracking Total 4 | . 4 Tactical Retreats 1 | . 1 Traps | -11 -10 ------- Run | Yrd Mat Traps Triggered 4 | . 4 Indirectly . | . . Trap Hack Attempts . | . . Triggered . | . . Disarmed . | . . Reprogrammed . | . . Reused . | . . Traps Extracted . | . . Installed . | . . Triggered . | . . Machines | -11 -10 ---------- Run | Yrd Mat Machines Disabled 3 | . 3 Max in Single Turn 2 | . 2 Machines Repaired . | . . Machines Dismantled . | . . Machines Sabotaged . | . . Overloaded Fab Kills . | . . Hacking | -11 -10 --------- Run | Yrd Mat Machines Accessed 5 | . 5 Terminals 4 | . 4 Fabricators . | . . Repair Stations . | . . Recycling Units 1 | . 1 Scanalyzers . | . . Garrison Access . | . . Total Hacks 16 | . 16 Successful 11 | . 11 Failed 5 | . 5 Catastrophic 1 | . 1 Database Lockouts . | . . Manual 1 | . 1 Terminals 11 | . 11 Fabricators . | . . Repair Stations . | . . Recycling Units 5 | . 5 Scanalyzers . | . . Garrison Access . | . . Terminal Hacks 7 | . 7 Record 2 | . 2 Alert Level 3 | . 3 Dispatch Records 1 | . 1 Maintenance Status 1 | . 1 Fabricator Hacks . | . . Repair Station Hacks . | . . Recycling Unit Hacks 4 | . 4 Recycle Component 2 | . 2 Process 1 | . 1 Retrieve Matter 1 | . 1 Scanalyzer . | . . Garrison Access Hacks . | . . Unauthorized Hacks . | . . Terminals . | . . Fabricators . | . . Repair Stations . | . . Recycling Units . | . . Scanalyzers . | . . Garrison Access . | . . Data Cores Recovered . | . . Used . | . . Hacking Detections 4 | . 4 Full Trace Events 1 | . 1 Feedback Events . | . . Feedback Blocked . | . . Robot Schematics Acquired . | . . Robots Built . | . . Authchips . | . . Time . | . . Total Robot Build Rating . | . . Part Schematics Acquired . | . . Parts Built . | . . Authchips . | . . Time . | . . Total Part Build Rating . | . . Part Studies Acquired . | . . Parts Repaired . | . . Time . | . . Parts Recycled 2 | . 2 Recycled Matter 170 | . 170 Retrieved Matter 396 | . 396 Retrieved Components . | . . Parts Scanalyzed . | . . Part Schematics Acquired . | . . Parts Damaged . | . . Bothacking | -11 -10 ------------ Run | Yrd Mat Used RIF Installer . | . . Robots Hacked . | . . Non-combat . | . . Combat . | . . Robot Hacks Applied . | . . Relay Couplers Released . | . . Fabnet Peak Effective % . | . . Robots Rewired . | . . Allies Hacked . | . . Hacks Repelled . | . . Allies | -11 -10 -------- Run | Yrd Mat Total Allies . | . . Largest Group . | . . Highest-Rated Group . | . . Highest-Rated Ally . | . . Total Orders . | . . Ally Attacks . | . . Total Damage . | . . Kills . | . . Allies Corrupted . | . . Allies Melted . | . . Intel | -11 -10 ------- Run | Yrd Mat Active Infowar (turns) . | . . Robot Analysis Total . | . . Derelict Logs Recovered . | . . Drone Launches . | . . Drone Recoveries . | . . Exploration | -11 -10 ------------- Run | Yrd Mat Turns Passed 1215 | 165 1050 Spaces Moved 665 | 108 557 Core 35 | 17 18 Treads 630 | 91 539 Legs . | . . Wheels . | . . Hover . | . . Flight . | . . Fastest Speed 50 | 50 50 Average Speed 154 | 142 156 Slowest Speed 160 | 160 160 Overloaded Moves . | . . Propulsion Burnouts . | . . Robots Hopped . | . . Potential Cave-ins . | . . Cave-ins Triggered . | . . Exploration Rate (%) 34 | 5 64 Regions Visited 1 Branch Regions . Pre-discovered Areas . | . . Known Exits Taken . | . . Unknown Exits Taken 1 | 1 . Scrap Searched . | . . Spaces Dug . | . . Terrain Destroyed 96 | . 96 Melee . | . . Projectile 2 | . 2 AOE 94 | . 94 Terrain Rammed . | . . Walls Destroyed . | . . Machines Disabled . | . . Actions | -11 -10 --------- Run | Yrd Mat Total 777 | 119 658 Wait 3 | . 3 Move 664 | 107 557 Hop . | . . Pick Up 24 | 6 18 Fast Attach . | . . Attach 23 | 6 17 Detach 6 | . 6 Swap . | . . Drop 3 | . 3 Fire 38 | . 38 Melee . | . . Ram 7 | . 7 Kick . | . . Crush 9 | . 9 Escape Stasis . | . . Rewire . | . . Trap . | . . Miscellaneous . | . . Route ------- -11/Scrapyard -10/Materials (discovered 2 exits: [*Min] / [*Sub]) History --------- Turn | Location | Event 41 | -11/Scrapyard | Discovered new exit (range 15) 166 | -11/Scrapyard | Entered Materials 300 | -10/Materials | Build established: Mutant 957 | -10/Materials | Core integrity fell below 50% 992 | -10/Materials | Discovered new exit (range 9) 1170 | -10/Materials | Discovered new exit (range 6) 1209 | -10/Materials | Core integrity fell below 20% 1216 | -10/Materials | Destroyed by S-10 Pest with Light Assault Rifle Last Messages --------------- 01194_ Mining Laser destroyed. 01195_ R-06 Scavenger collects Lgt. Assault Rifle. 01197_ T-07 Excavator is excavating. 01198_ Lgt. Treads destroyed. 01199_ R-06 Scavenger collects Flight Unit. 01199_ Slammed into S-10 Pest. 01205_ T-07 Excavator is excavating. 01207_ Lgt. Treads destroyed. 01208_ Slammed into S-10 Pest. 01208_ Destabilizing: Core damaged (-5). 01210_ Slammed into S-10 Pest. 01211_ T-07 Excavator is excavating. 01211_ Ion Engine destroyed. 01212_ Slammed into S-10 Pest. 01213_ Destabilizing: Core damaged (-7). 01214_ Slammed into S-10 Pest. 01215_ T-07 Excavator is excavating. 01215_ Slammed into S-10 Pest. 01216_ S-10 Pest destroyed. [Achievement: Fist Fight] Map ----- +----------------------------------------------------+ | ???# ??# = # ######## #????? | | ???# ????###### ######### ## # #????? | | ???#??????????## ####?? | | ??????########## +?? | | ??????# """ # ##???? | | ??????# "Y" # #### T##########+####### | | ??????# % # # ##??############ !"T" | | ??????# / # #??????????????# = | | ??????# # #??????????????# !! # | | ??????# ! # ##########???????# !!! # | | ??????# # # #???????# !! = + | | ??????# # # #???????# # | | ??????# !# # #???????# # | | ??????##+####### # #???????# # | | ???????# #?????# + #???????# # | | ???????# #?????# # = #???????########## | | ???????# #?????### # %#?####### ## | | ???????# #???????# # #?# T ## | | ???????# #########+# #?# # | | ???????# # #######+##?# " + | | ???????# + #?????# #??# "" # | | ???????# # #?##### #??# """ """ ## | | ???????# # ### ## #??# #? | | ???????# # ## t## ################### | | ???????# # #<=% # %s | | ???????# # ##@=%;% % o | | ???????# # ## % % a | | ???????# ######+####X %;% ##+#########! ! | | ???????# #?????????###### #???????#### | | ???????? ??????????????? #??????????# ! | | ???????? ?????????????? #??????????# | | ???????? ????????????? #??????????# | | ????????#????????????########??????######+#### | | ???????????????????????????????????# | | ???????????????????????????????????# | | ???????????????????????????????????# | | ???????????????????????????????????# """"" | | ???????????????????????????????????# """"" | | ???????????????????????????????????# """"" | | ???????????????????????????????????# | | ???????????????????????????????????######+#### | | ????????????????????????????????????????# # | | ????????????????????????????????????????# # | | ????????????????????????????????????????# # | | ?????????????????????????????????######## # | | ?????????????????????????????????# # | | ?????????????????????????????????# + | | ?????????????????????????????????# # | | ?????????????????????????????????# ##+### | | ?????????????????????????????????# # ## | +----------------------------------------------------+ Best States ------------- Heat Dissipation 25 Energy Generation 10 Energy Capacity 500 Matter Stores 300 Matter Capacity 300 Sight Range 16 Terrain Scan Density 10 Power Shielding 33 Evasion (%) 50 Targeting Accuracy 10 Recoil Reduction 2 Item Schematics ----------------- None Robot Schematics ------------------ None Fabricated ------------ Nothing Repaired ---------- Nothing Studied --------- None Alien Tech Used ----------------- None Achievements -------------- Fist Fight Loot Pinata Challenges ------------ None Game ------ Seed CorruptionImprovedMaxwheels Manual? 0 Play Time 00:34:00 Cumulative 1.8 hours Start 2026.09.05 @ 07:43:33 End 2026.09.05 @ 08:27:32 Sessions 1 Manual Loads 0 Difficulty Rogue Special Mode None Game No. 4 Rogue 3 Adventurer 1 Explorer 0 Win Type - Total 0 Types 0/0/0/0/0/0/0/0/0/0 Lore% 0 Gallery% 2 Achievement% 3 Wizard Run 0 Options --------- Layout 0 ASCII 1 Keyboard 1 Movement Numpad Keybinds 0 Fullscreen 2 Font 36/Smallcaps Map View 76x50 Zoom Use 27% Tactical HUD 1 Map Filters NONE Filters NONE Steam 1 RUN: 2c346694-9b9f-4904-ae12-0235f9fffdf4